fUSD/lending_fUSD_20250211
["ID","MTS","AMOUNT","RATE_DAILY","PERIOD"]
[352699335,1739250653558,-1648.31,0.00011362,2]
[352699336,1739250653567,-500.0,0.00011362,2]
[352699337,1739250653577,-500.0,0.00011362,2]
[352699338,1739250653587,-1727.1,0.00011362,2]
[352699339,1739250653596,-877.76,0.00011362,2]
[352699340,1739250653606,-1482.45,0.00011362,2]
[352699341,1739250653615,-754.61,0.00011362,2]
[352699342,1739250653625,-2012.41,0.00011362,2]
[352699343,1739250653634,-653.12,0.00011362,2]
[352699344,1739250653649,-1000.0,0.00011362,2]
[352699345,1739250653662,-500.0,0.00011362,2]
[352699346,1739250653672,-1224.26,0.00011362,2]
[352699347,1739250653683,-3364.19,0.00011362,2]
[352699348,1739250653694,-919.56,0.00011362,2]
[352699349,1739250653703,-1342.61,0.00011362,2]
[352699350,1739250653713,-1696.91,0.00011362,2]
[352699351,1739250653724,-1058.19,0.00011362,2]
[352699352,1739250653734,-529.0,0.00011362,2]
[352699353,1739250653743,-1726.12,0.00011362,2]
[352699354,1739250653752,-2047.09,0.00011362,2]
[352699355,1739250653762,-500.0,0.00011362,2]
[352699356,1739250653772,-846.67,0.00011362,2]
[352699357,1739250653781,-500.0,0.00011362,2]
[352699358,1739250653790,-2250.97,0.00011362,2]
[352699359,1739250653800,-500.0,0.00011362,2]
[352699360,1739250653809,-1924.38,0.00011362,2]
[352699361,1739250653820,-500.0,0.00011362,2]
[352699362,1739250653830,-2178.46,0.00011362,2]
[352699363,1739250653839,-500.0,0.00011362,2]
[352699364,1739250653849,-1343.29,0.00011362,2]
[352699365,1739250653859,-151.64565823,0.00011362,2]
[352699366,1739250654155,-1325.9401666,0.00011362,2]
[352699367,1739250654202,-151.46,0.00010691,2]
[352699368,1739250654212,-865.9,0.00010958,2]
[352699369,1739250654221,-847.81417517,0.00011362,2]
[352699370,1739250654231,-500.0,0.00011362,2]
[352699371,1739250654240,-4154.14,0.00011362,2]
[352699372,1739250654250,-3430.85655186,0.00011362,2]
[352699373,1739250654334,-360.86601538,0.00011095,2]
[352699374,1739250654358,-505.03398462,0.00011095,2]
[352699375,1739250654368,-865.9,0.00011232,2]
[352699376,1739250654379,-3289.06344814,0.00011362,2]
[352699377,1739250654388,-1045.71,0.00011362,2]
[352699378,1739250654398,-500.0,0.00011362,2]
[352699379,1739250654408,-1866.62,0.00011362,2]
[352699380,1739250654417,-500.0,0.00011362,2]
[352699381,1739250654427,-1745.72,0.00011362,2]
[352699382,1739250654436,-914.24,0.00011362,2]
[352699383,1739250654446,-827.83,0.00011362,2]
[352699384,1739250654455,-500.0,0.00011362,2]
[352699385,1739250654465,-577.54,0.00011362,2]
[352699386,1739250654474,-500.0,0.00011363,2]
[352699387,1739250654484,-960.38,0.00011363,2]
[352699388,1739250654494,-976.95,0.00011363,2]
[352699389,1739250654503,-1093.76,0.00011363,2]
[352699390,1739250654512,-761.93,0.00011363,2]
[352699391,1739250654522,-500.0,0.00011363,2]
[352699392,1739250654531,-1252.08,0.00011363,2]
[352699393,1739250654541,-502.05,0.00011363,2]
[352699394,1739250654550,-1297.81,0.00011363,2]
[352699395,1739250654559,-1338.1,0.00011363,2]
[352699396,1739250654570,-500.0,0.00011363,2]
[352699397,1739250654580,-500.0,0.00011363,2]
[352699398,1739250654589,-500.0,0.00011363,2]
[352699399,1739250654599,-500.0,0.00011363,2]
[352699400,1739250654608,-500.0,0.00011363,2]
[352699401,1739250654618,-500.0,0.00011363,2]
[352699402,1739250654627,-150.0,0.00011365,2]
[352699403,1739250654637,-1000.0,0.00011369,2]
[352699404,1739250654650,-1000.0,0.00011369,2]
[352699405,1739250654660,-1000.0,0.00011369,2]
[352699406,1739250654669,-1000.0,0.00011369,2]
[352699407,1739250654678,-1000.0,0.00011369,2]
[352699408,1739250654689,-1000.0,0.00011369,2]
[352699409,1739250654699,-150.0,0.00011369,2]
[352699410,1739250654708,-2305.92,0.00011369,2]
[352699411,1739250654718,-912.093638,0.00011369,2]
[352699412,1739250654729,-500.0,0.00011369,2]
[352699413,1739250654739,-248.54458418,0.00011369,2]
[352699414,1739250654748,-1518.4,0.00011369,2]
[352699415,1739250654758,-1321.43,0.00011369,2]
[352699416,1739250654767,-500.0,0.00011369,2]
[352699417,1739250654777,-150.0,0.00011369,2]
[352699418,1739250654786,-1388.0,0.00011369,2]
[352699419,1739250654796,-1026.73,0.00011369,2]
[352699420,1739250654806,-1838.06,0.00011369,2]
[352699421,1739250654817,-520.4,0.00011369,2]
[352699422,1739250654827,-994.35,0.00011369,2]
[352699423,1739250654836,-855.97882,0.00011369,2]
[352699424,1739250654846,-1940.58,0.00011369,2]
[352699425,1739250654857,-1535.32,0.00011369,2]
[352699426,1739250654867,-1212.29,0.00011369,2]
[352699427,1739250654876,-664.32,0.00011369,2]
[352699428,1739250654886,-500.0,0.00011369,2]
[352699429,1739250654896,-1142.24,0.00011369,2]
[352699430,1739250654905,-613.57,0.00011369,2]
[352699431,1739250654915,-1415.44,0.00011369,2]
[352699432,1739250654926,-2337.57,0.00011369,2]
[352699433,1739250654937,-2581.03,0.00011369,2]
[352699434,1739250654947,-2314.39,0.00011369,2]
[352699435,1739250654957,-784.45,0.00011369,2]
[352699436,1739250654968,-2326.26,0.00011369,2]
[352699437,1739250654978,-1666.57,0.00011369,2]
[352699438,1739250654988,-2137.62,0.00011369,2]
[352699439,1739250654998,-817.64,0.00011369,2]
[352699440,1739250655008,-2910.21,0.00011369,2]
[352699441,1739250655018,-1673.73,0.00011369,2]
[352699442,1739250655027,-2252.75,0.00011369,2]
[352699443,1739250655037,-2037.2,0.00011369,2]
[352699444,1739250655046,-1423.58,0.00011369,2]
[352699445,1739250655056,-3288.35,0.00011369,2]
[352699446,1739250655067,-6743.59,0.00011369,2]
[352699447,1739250655077,-1685.93,0.00011369,2]
[352699448,1739250655087,-2259.46,0.00011369,2]
[352699449,1739250655096,-2672.27,0.00011369,2]
[352699450,1739250655105,-2966.77,0.00011369,2]
[352699451,1739250655115,-1318.65,0.00011369,2]
[352699452,1739250655124,-2716.9,0.00011369,2]
[352699453,1739250655134,-1540.01,0.00011369,2]
[352699454,1739250655143,-4869.53,0.00011369,2]
[352699455,1739250655152,-3646.89,0.00011369,2]
[352699456,1739250655161,-978.58,0.00011369,2]
[352699457,1739250655171,-1074.13,0.00011369,2]
[352699458,1739250655180,-2364.94,0.00011369,2]
[352699459,1739250655190,-250.38675486,0.00011369,2]
[352699460,1739250655199,-1399.13,0.00011369,2]
[352699461,1739250655208,-724.27,0.00011369,2]
[352699462,1739250655218,-535.72,0.00011369,2]
[352699463,1739250655228,-544.88,0.00011369,2]
[352699464,1739250655237,-2035.19,0.00011369,2]
[352699465,1739250655247,-2908.54,0.00011369,2]
[352699466,1739250655256,-500.0,0.00011369,2]
[352699467,1739250655265,-1488.4,0.00011369,2]
[352699468,1739250655275,-2749.95,0.00011369,2]
[352699469,1739250655284,-500.0,0.00011369,2]
[352699470,1739250655294,-953.06,0.00011369,2]
[352699471,1739250655304,-909.41,0.00011392,2]
[352699472,1739250655314,-4031.84957834,0.00011393,2]
[352699473,1739250655325,-500.0,0.00011396,2]
[352699474,1739250655335,-500.0,0.00011396,2]
[352699475,1739250655345,-1388.0,0.00011396,2]
[352699476,1739250655355,-150.0,0.00011402,2]
[352699477,1739250655364,-150.0,0.00011418,2]
[352699478,1739250655374,-150.0,0.00011418,2]
[352699479,1739250655383,-500.0,0.00011424,2]
[352699480,1739250655393,-500.0,0.00011424,2]
[352699481,1739250655402,-1388.0,0.00011424,2]
[352699482,1739250655412,-983.57,0.00011434,2]
[352699483,1739250655422,-150.0,0.00011438,2]
[352699484,1739250655431,-150.0,0.00011438,2]
[352699485,1739250655441,-150.0,0.00011442,2]
[352699486,1739250655450,-150.0,0.00011445,2]
[352699487,1739250655460,-4211.05181863,0.00011447,2]
[352699488,1739250655470,-381.7318424,0.00011451,2]
[352699489,1739250655480,-906.67929849,0.00011451,2]
[352699490,1739250655491,-500.0,0.00011451,2]
[352699491,1739250655500,-1388.0,0.00011451,2]
[352699492,1739250655511,-200.0,0.00011456,2]
[352699493,1739250655520,-150.0,0.00011467,2]
[352699494,1739250655531,-1388.0,0.00011479,2]
[352699495,1739250655540,-150.0,0.00011487,2]
[352699496,1739250655550,-1540.6513526,0.00011492,2]
[352699497,1739250655560,-1002.1246141,0.00011492,2]
[352699498,1739250655571,-3075.2756614,0.00011492,2]
[352699499,1739250655581,-250.0,0.00011494,2]
[352699500,1739250655591,-237198.88688444,0.00011498,3]
[352699501,1739250656068,-338.1127,0.00010958,2]
[352699502,1739250656168,-2813.22418452,0.00010958,2]
[352699503,1739250656181,-9755.90481078,0.00010958,2]
[352699504,1739250656208,-1000.0,0.00010958,2]
[352699505,1739250656225,-285.93687793,0.00010958,2]
[352699506,1739250656237,-2058.0180528,0.00010958,2]
[352699507,1739250656250,-5162.75339022,0.00010958,2]
[352699508,1739250656263,-1601.97659734,0.00010958,2]
[352699509,1739250656273,-500.0,0.00011087,2]
[352699510,1739250656283,-1000.0,0.00011369,2]
[352699511,1739250656294,-1000.0,0.00011369,2]
[352699512,1739250656305,-1000.0,0.00011369,2]
[352699513,1739250656317,-301.20727514,0.00011369,2]
[352699514,1739250656359,-698.79272486,0.00011369,2]
[352699515,1739250656370,-865.9,0.00011369,2]
[352699516,1739250656380,-4482.60113818,0.00011498,3]
[352699519,1739251511952,288.0,0.000136,30]
[352699545,1739251832136,-892.39,8.219e-05,2]
[352699546,1739251832146,-150.0,8.362e-05,2]
[352699547,1739251832155,-639.77,8.505e-05,2]
[352699548,1739251832165,-150.0,8.531e-05,2]
[352699549,1739251832174,-200.0,8.533e-05,2]
[352699550,1739251832183,-1582.81335,8.533e-05,2]
[352699551,1739251832201,-2903.83665,8.533e-05,2]
[352699552,1739251832211,-2010.7823,8.699e-05,2]
[352699553,1739251832220,-491.76567041,8.699e-05,2]
[352699554,1739251832232,-1598.5381823,8.699e-05,2]
[352699555,1739251832243,-499.34874343,8.699e-05,2]
[352699556,1739251832254,-255.88234226,8.699e-05,2]
[352699557,1739251832280,-631.35360099,8.699e-05,2]
[352699558,1739251832291,-5637.55206061,8.699e-05,2]
[352699559,1739251832302,-1295.46638166,8.736e-05,2]
[352699560,1739251832313,-581.14806694,8.736e-05,2]
[352699561,1739251832322,-181.02735523,8.736e-05,2]
[352699562,1739251832334,-1695.58709337,8.736e-05,2]
[352699563,1739251832343,-150.0,8.835e-05,2]
[352699564,1739251832352,-238.50515845,8.836e-05,2]
[352699565,1739251832364,-29060.26234155,8.836e-05,2]
[352699566,1739251832373,-2234.1254,8.836e-05,2]
[352699567,1739251832383,-17686.2305,8.836e-05,2]
[352699568,1739251832393,-47675.6449,8.836e-05,2]
[352699569,1739251832402,-355.5267,8.836e-05,2]
[352699570,1739251832411,-34637.72328697,8.836e-05,2]
[352699571,1739251832541,-1089.69,8.836e-05,2]
[352699572,1739251832559,-392.08987572,8.836e-05,2]
[352699573,1739251832570,-10698.66366975,8.836e-05,2]
[352699574,1739251832582,-27177.85566756,8.836e-05,2]
[352699575,1739251832592,-1000.0,8.851e-05,2]
[352699576,1739251832602,-47275.79951677,8.973e-05,2]
[352699577,1739251832613,-639.900128,8.973e-05,2]
[352699585,1739251838049,-832.25,8.973e-05,2]
[352699586,1739251838060,-3264.13760739,8.973e-05,2]
[352699587,1739251838071,-19525.64284784,8.973e-05,2]
[352699588,1739251838082,-5000.0,8.973e-05,2]
[352699589,1739251838093,-150.0,9.041e-05,2]
[352699590,1739251838103,-159.87,9.328e-05,2]
[352699591,1739251838112,-159.87,9.333e-05,2]
[352699592,1739251838123,-159.87,9.337e-05,2]
[352699593,1739251838132,-159.87,9.341e-05,2]
[352699594,1739251838141,-159.87,9.345e-05,2]
[352699595,1739251838151,-159.87,9.35e-05,2]
[352699596,1739251838161,-159.87,9.354e-05,2]
[352699597,1739251838170,-159.87,9.358e-05,2]
[352699598,1739251838179,-159.87,9.362e-05,2]
[352699599,1739251838188,-159.87,9.367e-05,2]
[352699600,1739251838198,-159.87,9.371e-05,2]
[352699601,1739251838207,-268.85,9.373e-05,2]
[352699602,1739251838217,-159.87,9.375e-05,2]
[352699603,1739251838226,-962.52,9.525e-05,2]
[352699604,1739251838235,-500.0,9.568e-05,2]
[352699605,1739251838245,-250.0,9.574e-05,2]
[352699606,1739251838257,-714.02368234,9.686e-05,2]
[352699607,1739251838287,-62.45631766,9.686e-05,2]
[352699608,1739251838299,-248.72,9.686e-05,2]
[352699609,1739251838312,-167.54,9.686e-05,2]
[352699610,1739251838320,-255.0,9.718e-05,2]
[352699611,1739251838330,-1037.56768239,9.737e-05,2]
[352699612,1739251838359,-363.60613795,9.737e-05,2]
[352699613,1739251838370,-8033.2356239,9.737e-05,2]
[352699614,1739251838381,-10704.0354261,9.737e-05,2]
[352699615,1739251838392,-622.7692827,9.737e-05,2]
[352699616,1739251838403,-2011.92315686,9.737e-05,2]
[352699617,1739251838421,-1126.8626901,9.737e-05,2]
[352699618,1739251838430,-2000.0,9.758e-05,2]
[352699620,1739251838440,-193.81,9.886e-05,2]
[352699622,1739251838449,-1238.26,9.965e-05,2]
[352699624,1739251838457,-604.0,0.0001,2]
[352699626,1739251838466,-24846.85224499,0.0001,2]
[352699628,1739251838477,-1793.88386635,0.0001,2]
[352699631,1739251838492,-5508.92049053,0.0001,2]
[352699633,1739251838504,-543.48961775,0.0001,2]
[352699808,1739251840114,-10506.26849954,0.0001,2]
[352699810,1739251840128,-259.71546597,0.0001,2]
[352699823,1739251840233,-4574.4505584,0.0001,2]
[352699825,1739251840242,-2090.1221416,0.0001,2]
[352699832,1739251840298,-1621.85324005,0.0001,2]
[352699834,1739251840309,-625.34,0.0001,2]
[352699840,1739251840365,-39567.4116,0.0001,2]
[352699860,1739251840541,-63446.83849615,0.0001,2]
[352699862,1739251840550,-340.33264157,0.0001,2]
[352699864,1739251840559,-49154.91771525,0.0001,2]
[352699871,1739251840613,-3486.48786464,0.0001,2]
[352699873,1739251840625,-794.72487095,0.0001,2]
[352699876,1739251840636,-1466.63688144,0.0001,2]
[352699909,1739251843232,-2479.10016708,0.0001,2]
[352699910,1739251843243,-1817.67063,0.0001,2]
[352699911,1739251843254,-1765.7713395,0.0001,2]
[352699912,1739251843333,-190088.96541516,0.0001,2]
[352699913,1739251843345,-179.93732686,0.0001,2]
[352699914,1739251843354,-250.0,0.00010132,2]
[352699915,1739251843363,-162.51,0.00010137,2]
[352699916,1739251843372,-1000.0,0.00010152,2]
[352699917,1739251843380,-170.86,0.00010183,2]
[352699918,1739251843389,-208.0,0.0001026,2]
[352699919,1739251843398,-392.16,0.00010374,2]
[352699920,1739251843408,-892.39,0.00010399,2]
[352699921,1739251843417,-208.0,0.0001046,2]
[352699922,1739251843425,-200.0,0.00010462,2]
[352699923,1739251843434,-29999.99,0.00010475,2]
[352699924,1739251843443,-29999.99,0.00010475,2]
[352699925,1739251843452,-150.0,0.00010493,2]
[352699926,1739251843461,-150.0,0.00010578,2]
[352699927,1739251843470,-208.0,0.0001065,2]
[352699928,1739251843479,-13457.89592206,0.00010827,2]
[352699929,1739251843488,-13457.89592206,0.00010833,2]
[352699930,1739251843497,-13457.89592206,0.00010843,2]
[352699931,1739251843506,-208.0,0.0001085,2]
[352699932,1739251843516,-13457.89592206,0.0001089,2]
[352699933,1739251843525,-248.72,0.00010897,2]
[352699934,1739251843534,-217.16264162,0.000109,2]
[352699935,1739251843543,-151.78,0.00010944,2]
[352699936,1739251843553,-150.69,0.00010944,2]
[352699937,1739251843562,-150.37,0.00010944,2]
[352699938,1739251843570,-854.76,0.00010958,2]
[352699940,1739251843579,-805.66,0.00010958,2]
[352699942,1739251843588,-500.0,0.00010958,2]
[352699944,1739251843602,-549.78,0.00010958,2]
[352699946,1739251843611,-649.91,0.00010958,2]
[352699948,1739251843620,-1307.6,0.00010958,2]
[352699950,1739251843630,-500.0,0.00010958,2]
[352699952,1739251843639,-1121.35,0.00010958,2]
[352699954,1739251843648,-950.58,0.00010958,2]
[352699956,1739251843657,-604.2,0.00010958,2]
[352699958,1739251843666,-744.09,0.00010958,2]
[352699960,1739251843675,-947.47,0.00010958,2]
[352699962,1739251843685,-500.0,0.00010958,2]
[352699963,1739251843695,-426.58108712,0.00010958,2]
[352699965,1739251843704,-500.0,0.00010958,2]
[352699968,1739251843714,-974.36,0.00010958,2]
[352699970,1739251843723,-500.0,0.00010958,2]
[352699972,1739251843732,-500.0,0.00010958,2]
[352699974,1739251843741,-607.7,0.00010958,2]
[352699976,1739251843750,-500.0,0.00010958,2]
[352699978,1739251843759,-500.0,0.00010958,2]
[352699980,1739251843769,-500.0,0.00010958,2]
[352699982,1739251843778,-500.0,0.00010958,2]
[352699984,1739251843787,-192.05608766,0.00010958,2]
[352699985,1739251843796,-500.0,0.00010958,2]
[352699987,1739251843805,-748.61,0.00010958,2]
[352699988,1739251843814,-500.0,0.00010958,2]
[352699989,1739251843823,-807.24,0.00010958,2]
[352699990,1739251843832,-500.0,0.00010958,2]
[352699991,1739251843841,-876.49,0.00010958,2]
[352699992,1739251843851,-500.0,0.00010958,2]
[352699993,1739251843860,-950.09,0.00010958,2]
[352699994,1739251843869,-810.544459,0.00010958,2]
[352699995,1739251843879,-500.0,0.00010958,2]
[352699996,1739251843888,-500.0,0.00010958,2]
[352699997,1739251843897,-913.61,0.00010958,2]
[352699998,1739251843907,-482.17418995,0.00010958,2]
[352699999,1739251843916,-692.16,0.00010958,2]
[352700000,1739251843926,-500.0,0.00010958,2]
[352700001,1739251843935,-647.07,0.00010958,2]
[352700002,1739251843944,-500.0,0.00010958,2]
[352700003,1739251843953,-748.981467,0.00010958,2]
[352700004,1739251843963,-500.0,0.00010958,2]
[352700005,1739251843972,-716.85,0.00010958,2]
[352700006,1739251843981,-506.12010526,0.00010958,2]
[352700007,1739251843990,-1009.49,0.00010958,2]
[352700008,1739251843999,-500.0,0.00010958,2]
[352700009,1739251844008,-184.95371553,0.00010958,2]
[352700010,1739251844017,-500.0,0.00010958,2]
[352700011,1739251844026,-500.0,0.00010958,2]
[352700012,1739251844035,-986.45,0.00010958,2]
[352700013,1739251844044,-500.0,0.00010958,2]
[352700014,1739251844056,-500.0,0.00010958,2]
[352700015,1739251844065,-566.13,0.00010958,2]
[352700016,1739251844074,-500.0,0.00010958,2]
[352700017,1739251844084,-653.15,0.00010958,2]
[352700018,1739251844095,-872.37,0.00010958,2]
[352700019,1739251844105,-500.0,0.00010958,2]
[352700020,1739251844114,-641.11,0.00010958,2]
[352700021,1739251844124,-524.37178206,0.00010958,2]
[352700022,1739251844134,-500.0,0.00010958,2]
[352700023,1739251844143,-1186.17,0.00010958,2]
[352700024,1739251844153,-500.0,0.00010958,2]
[352700025,1739251844162,-500.0,0.00010958,2]
[352700026,1739251844171,-1110.16,0.00010958,2]
[352700027,1739251844180,-725.8,0.00010958,2]
[352700028,1739251844190,-500.0,0.00010958,2]
[352700029,1739251844199,-390.74946055,0.00010958,2]
[352700030,1739251844208,-718.72,0.00010958,2]
[352700031,1739251844217,-500.0,0.00010958,2]
[352700032,1739251844226,-969.81,0.00010958,2]
[352700033,1739251844236,-500.0,0.00010958,2]
[352700034,1739251844245,-648.57,0.00010958,2]
[352700035,1739251844254,-764.75,0.00010958,2]
[352700036,1739251844263,-500.0,0.00010958,2]
[352700037,1739251844272,-500.0,0.00010958,2]
[352700038,1739251844281,-500.0,0.00010958,2]
[352700039,1739251844290,-500.0,0.00010958,2]
[352700040,1739251844299,-500.0,0.00010958,2]
[352700041,1739251844308,-500.0,0.00010958,2]
[352700042,1739251844317,-844.02,0.00010958,2]
[352700043,1739251844326,-2552.04,0.00010958,2]
[352700044,1739251844335,-500.0,0.00010958,2]
[352700045,1739251844346,-1197.92,0.00010958,2]
[352700046,1739251844355,-890.63,0.00010958,2]
[352700047,1739251844365,-500.0,0.00010958,2]
[352700048,1739251844374,-660.28,0.00010958,2]
[352700049,1739251844382,-1733.3,0.00010958,2]
[352700050,1739251844391,-571.48,0.00010958,2]
[352700051,1739251844400,-1428.52,0.00010958,2]
[352700052,1739251844410,-890.89,0.00010958,2]
[352700053,1739251844420,-720.26,0.00010958,2]
[352700054,1739251844429,-934.59,0.00010958,2]
[352700055,1739251844438,-1906.69,0.00010958,2]
[352700056,1739251844447,-804.61,0.00010958,2]
[352700057,1739251844456,-500.0,0.00010958,2]
[352700058,1739251844465,-1615.51,0.00010958,2]
[352700059,1739251844475,-532.97,0.00010958,2]
[352700060,1739251844484,-925.91,0.00010958,2]
[352700061,1739251844493,-1000.0,0.00010958,2]
[352700062,1739251844502,-2075.64,0.00010958,2]
[352700063,1739251844510,-1007.9,0.00010958,2]
[352700064,1739251844520,-1223.74,0.00010958,2]
[352700065,1739251844529,-572.6,0.00010958,2]
[352700066,1739251844539,-1259.35,0.00010958,2]
[352700067,1739251844548,-1739.67,0.00010958,2]
[352700068,1739251844557,-500.0,0.00010958,2]
[352700069,1739251844566,-2126.88,0.00010958,2]
[352700070,1739251844575,-500.0,0.00010958,2]
[352700071,1739251844584,-1644.83,0.00010958,2]
[352700072,1739251844597,-1276.04,0.00010958,2]
[352700073,1739251844606,-2351.97085419,0.00010958,2]
[352700074,1739251844650,-148.89914581,0.00010958,2]
[352700075,1739251844659,-2190.32,0.00010958,2]
[352700076,1739251844669,-500.0,0.00010958,2]
[352700077,1739251844677,-500.0,0.00010958,2]
[352700078,1739251844685,-500.0,0.00010958,2]
[352700079,1739251844694,-2095.75,0.00010958,2]
[352700080,1739251844703,-1109.87754926,0.00010958,2]
[352700081,1739251844778,-437.80245074,0.00010958,2]
[352700082,1739251844788,-500.0,0.00010958,2]
[352700083,1739251844797,-1870.42,0.00010958,2]
[352700084,1739251844806,-1271.1224722,0.00010958,2]
[352700085,1739251844832,-988.4875278,0.00010958,2]
[352700086,1739251844840,-500.0,0.00010958,2]
[352700087,1739251844852,-1364.24,0.00010958,2]
[352700088,1739251844861,-720.17,0.00010958,2]
[352700089,1739251844870,-3705.74,0.00010958,2]
[352700090,1739251844879,-2096.16,0.00010958,2]
[352700091,1739251844888,-1156.2,0.00010958,2]
[352700092,1739251844898,-1103.86,0.00010958,2]
[352700093,1739251844907,-6046.48,0.00010958,2]
[352700094,1739251844916,-500.0,0.00010958,2]
[352700095,1739251844925,-1538.58,0.00010958,2]
[352700096,1739251844934,-1482.38,0.00010958,2]
[352700097,1739251844943,-1065.44,0.00010958,2]
[352700098,1739251844953,-2710.23,0.00010958,2]
[352700099,1739251844962,-2159.76,0.00010958,2]
[352700100,1739251844971,-2649.07,0.00010958,2]
[352700101,1739251844981,-958.57,0.00010958,2]
[352700102,1739251844990,-1639.29,0.00010958,2]
[352700103,1739251844999,-1319.61,0.00010958,2]
[352700104,1739251845008,-1347.51,0.00010958,2]
[352700105,1739251845017,-2912.13,0.00010958,2]
[352700106,1739251845027,-500.0,0.00010958,2]
[352700107,1739251845038,-2202.4,0.00010958,2]
[352700108,1739251845048,-3242.48,0.00010958,2]
[352700109,1739251845057,-1105.63,0.00010958,2]
[352700110,1739251845066,-2449.15,0.00010958,2]
[352700111,1739251845076,-715.44,0.00010958,2]
[352700112,1739251845087,-500.0,0.00010958,2]
[352700113,1739251845098,-197.04797185,0.00010958,2]
[352700114,1739251845107,-939.86,0.00010958,2]
[352700115,1739251845117,-2398.12,0.00010958,2]
[352700116,1739251845126,-2307.91,0.00010958,2]
[352700117,1739251845135,-1782.55,0.00010958,2]
[352700118,1739251845144,-745.68,0.00010958,2]
[352700119,1739251845153,-1245.07,0.00010958,2]
[352700120,1739251845163,-2942.09,0.00010958,2]
[352700121,1739251845173,-286.77781698,0.00010958,2]
[352700122,1739251845182,-3002.3,0.00010958,2]
[352700123,1739251845191,-838.05,0.00010958,2]
[352700124,1739251845200,-2362.68,0.00010958,2]
[352700125,1739251845210,-500.0,0.00010958,2]
[352700126,1739251845219,-500.0,0.00010958,2]
[352700127,1739251845228,-4385.83,0.00010958,2]
[352700128,1739251845237,-1780.8,0.00010958,2]
[352700129,1739251845247,-758.84,0.00010958,2]
[352700130,1739251845256,-1986.81,0.00010958,2]
[352700131,1739251845265,-1323.19,0.00010958,2]
[352700132,1739251845274,-500.0,0.00010958,2]
[352700133,1739251845283,-1221.93,0.00010958,2]
[352700134,1739251845292,-983.11,0.00010958,2]
[352700135,1739251845300,-524.09,0.00010958,2]
[352700136,1739251845309,-2132.39,0.00010958,2]
[352700137,1739251845318,-2827.01,0.00010958,2]
[352700138,1739251845328,-1948.59,0.00010958,2]
[352700139,1739251845337,-500.0,0.00010958,2]
[352700140,1739251845348,-500.0,0.00010958,2]
[352700141,1739251845358,-797.23,0.00010958,2]
[352700142,1739251845368,-3316.03,0.00010958,2]
[352700143,1739251845378,-500.0,0.00010958,2]
[352700144,1739251845388,-2690.8,0.00010958,2]
[352700145,1739251845397,-2101.66,0.00010958,2]
[352700146,1739251845407,-955.09,0.00010958,2]
[352700147,1739251845417,-877.1,0.00010958,2]
[352700148,1739251845427,-1777.59,0.00010958,2]
[352700149,1739251845436,-500.0,0.00010958,2]
[352700150,1739251845445,-2163.51,0.00010958,2]
[352700151,1739251845455,-500.0,0.00010958,2]
[352700152,1739251845464,-716.65,0.00010958,2]
[352700153,1739251845474,-654.57,0.00010958,2]
[352700154,1739251845483,-500.0,0.00010958,2]
[352700155,1739251845492,-910.06,0.00010958,2]
[352700156,1739251845502,-500.0,0.00010958,2]
[352700157,1739251845512,-1262.82,0.00010958,2]
[352700158,1739251845521,-1289.56,0.00010958,2]
[352700159,1739251845530,-655.54,0.00010958,2]
[352700160,1739251845539,-150.0,0.00010959,2]
[352700161,1739251845549,-3988.41,0.00010959,2]
[352700162,1739251845559,-402.34630428,0.00010995,2]